Cogmind - Beta 12 @@@ ROGUE MODE // 2023.11.23 @ 10:09:37 Player: motadol Result: Destroyed by as-07697 with Assembled Heavy Rifle Performance ------------- Evolutions (0) 0 Regions Visited (2) 400 Robots Destroyed (25) 125 Value Destroyed (499) 499 Prototype IDs (2) 40 Alien Tech Used (0) 0 Bonus (0) 0 TOTAL SCORE: 1064 Bonus ------- None Cogmind --------- Core Integrity 0/250 Matter 48/300 Energy 250/250 System Corruption 1% Temperature Cool (0) Movement Rolling (110) Ox2 Location -10/Mines Parts ------- > --- POWER (1) -------- Ion Engine > --- PROPULSION (2) --- Wheel > --- UTILITY (2) ------ Large Storage Unit Signal Interpreter > --- WEAPON (2) ------- Light Assault Rifle Grenade Launcher > --- INVENTORY (15) --- Ion Engine Small Storage Unit High-capacity Matter Pod (110) Transport Network Coupler ECM Suite ECM Suite ECM Suite Authchip [Power] Authchip [Propulsion] Authchip [Propulsion] Authchip [Armor] Splice Drone Bay Medium Laser Peak State ------------ > --- POWER ------------ Ion Engine > --- PROPULSION ------- Light Treads > --- UTILITY ---------- Large Storage Unit Signal Interpreter > --- WEAPON ----------- Assault Rifle Light Assault Rifle > --- INVENTORY -------- Ion Engine Ion Engine Small Storage Unit High-capacity Matter Pod Transport Network Coupler ECM Suite ECM Suite ECM Suite Authchip [Power] Authchip [Propulsion] Authchip [Propulsion] Authchip [Armor] Splice Drone Bay Medium Laser Grenade Launcher [Rating: 9] Favorites ----------- Power Ion Engine Engine Ion Engine Propulsion Light Treads Treads Light Treads Wheel Wheel Utility Large Storage Unit Device Seismic Detector Storage Large Storage Unit Processor Signal Interpreter Weapon Assault Rifle Energy Gun Medium Laser Ballistic Gun Assault Rifle Launcher Grenade Launcher Build | -11 -10 -10 ------- Run | Jun Mat Min Slots Evolved . | . . . Power . | . . . Propulsion . | . . . Utility . | . . . Weapon . | . . . Parts Attached 20 | 7 9 4 Power 3 | 1 1 1 Engine 3 | 1 1 1 Core . | . . . Reactor . | . . . Propulsion 3 | 2 . 1 Treads 2 | 2 . . Leg . | . . . Wheel 1 | . . 1 Hover . | . . . Flight . | . . . Utility 4 | 2 2 . Device 1 | 1 . . Storage 2 | 1 1 . Processor 1 | . 1 . Hackware . | . . . Protection . | . . . Artifact . | . . . Weapon 10 | 2 6 2 Energy Gun 2 | 1 1 . Energy Cannon . | . . . Ballistic Gun 6 | 1 4 1 Ballistic Cannon . | . . . Launcher 2 | . 1 1 Special Weapon . | . . . Impact Weapon . | . . . Slashing Weapon . | . . . Piercing Weapon . | . . . Special Melee Weapon . | . . . Unidentified Prototypes . | . . . Parts Lost 8 | . 5 3 Power 2 | . 1 1 Propulsion 2 | . 1 1 Utility 1 | . 1 . Weapon 3 | . 2 1 Highest Loss Streak 2 | . 2 2 To Critical Strikes . | . . . Average Slot Usage (%) 85 | . 89 78 Engine 13 | . 13 13 Treads 15 | . 20 3 Wheel 1 | . . 3 Device 3 | . 5 . Storage 14 | . 14 14 Processor 8 | . 5 14 Energy Gun 2 | . 3 . Ballistic Gun 25 | . 24 26 Naked Turns . | . . . Heaviest Build 30 | 12 30 30 Greatest Support 40 | 40 40 20 Greatest Overweight (x) 9 | . 1 9 Average Overweight (x) 1 | . . 3 Largest Inventory Capacity 15 | 8 15 15 Average Capacity 14 | 7 14 15 Most Carried 15 | 5 15 15 Average Carried 9 | 1 6 14 Final Capacity 15 | 8 15 15 Final Carried 15 | . 15 13 Class Distribution -------------------- 100% | Mutant Dominant Class ---------------- Mutant | -10/Materials Mutant | -10/Mines Resources | -11 -10 -10 ----------- Run | Jun Mat Min Matter Collected 840 | 220 486 134 Remotely . | . . . Salvage Created 737 | 22 543 172 Parts 44 | 4 33 7 Haulers Intercepted 1 | . 1 . Recyclers Shooed 3 | 1 . 2 Parts Field Recycled . | . . . Retrieved Matter . | . . . Parts Self-Destructed . | . . . Prevented . | . . . Kills | -11 -10 -10 ------- Run | Jun Mat Min Combat Hostiles Destroyed 22 | . 14 8 Guns 15 | . 11 4 AOE 7 | . 3 4 Classes Destroyed 8 | 1 6 1 Worker 2 | . 1 1 Tunneler 3 | 1 . 2 Hauler 1 | . 1 . Recycler 1 | . 1 . Watcher 2 | . 2 . Swarmer 6 | . 6 . Grunt 10 | . 8 2 Assembled 6 | . . 6 Best Kill Streak 6 | 1 6 5 Combat Bots Only 5 | . 4 5 Max Kills in Single Turn 4 | 1 4 1 Gunslinging . | . . . Exploded 2 | . 2 1 Melee . | . . . Uniques/NPCs Destroyed . | . . . Combat | -11 -10 -10 -------- Run | Jun Mat Min Damage Taken 1127 | . 806 321 Core 262 | . 207 55 Absorbed by Shields . | . . . Core Remaining (%) 100 | 100 . . Volleys Fired 119 | 5 64 50 Largest 2 | 2 2 2 Hottest 70 | 70 70 40 Shots Fired 216 | 10 124 82 Gun 202 | 10 122 70 Cannon . | . . . Launcher 14 | . 2 12 Special . | . . . Kinetic 183 | 5 108 70 Thermal 19 | 5 14 . Explosive 14 | . 2 12 Electromagnetic . | . . . Robot Hit Streak 9 | 3 9 6 Robot Miss Streak 6 | 2 5 6 Penetration Max . | . . . Secondary Targets 1 | . . 1 Max Gunslinging Chain 1 | . . 1 Shots Hit Robots 99 | 6 67 26 Core Hits 58 | 3 31 24 Critical Kills . | . . . Critical Parts Destroyed . | . . . Critical Strikes 1 | 1 . . Burn 1 | 1 . . Melee Attacks . | . . . Impact . | . . . Slashing . | . . . Piercing . | . . . Sneak Attacks . | . . . Combat Hostiles . | . . . Follow-up Attacks . | . . . Damage Inflicted 1830 | 66 1207 557 Guns 1063 | 66 736 261 Cannons . | . . . Explosions 767 | . 471 296 Melee . | . . . Ramming . | . . . Kinetic 963 | 29 673 261 Thermal 369 | 37 332 . Explosive 498 | . 202 296 Electromagnetic . | . . . Impact . | . . . Slashing . | . . . Piercing . | . . . Highest Corruption 1 | . 1 1 Average Corruption 1 | . 1 1 Corruption Purged . | . . . Corruption Blocked . | . . . Effects 8 | . 2 6 Matter Fused 5 | . . 5 Energy Discharges 2 | . 1 1 Data Loss (major) 1 | . 1 . Overload Shots . | . . . Overflow Damage 153 | . 153 . Projectiles . | . . . Explosions 153 | . 153 . Melee . | . . . Knockbacks . | . . . Impact . | . . . Kinetic . | . . . Secondary . | . . . Self-Inflicted Damage 139 | . 101 38 Shots 2 | . 1 1 Rammed . | . . . Targets Rammed . | . . . Kicked . | . . . Crushed . | . . . Highest Temperature 117 | 90 117 10 Average Temperature 29 | 53 28 9 Received Heat Transfer 414 | . 285 129 Siege Activations . | . . . Robots Corrupted . | . . . Combat Hostiles . | . . . Parts Fried . | . . . Impact Corruptions . | . . . Robots Melted . | . . . Combat Hostiles . | . . . Parts Melted 1 | 1 . . Heat Transferred 520 | 185 335 . Parts Sabotaged . | . . . Parts Stolen . | . . . Parts Stripped . | . . . Power Chain Reactions . | . . . Missiles Intercepted . | . . . Alert | -11 -10 -10 ------- Run | Jun Mat Min Peak Influence 201 | 5 201 55 Initial 5 | . 3 5 Average 39 | 1 54 15 Maximum Alert Level 1 | . 1 . Low Security (%) 98 | 100 97 100 Level 1 1 | . 2 . Level 2 . | . . . Level 3 . | . . . Level 4 . | . . . Level 5 . | . . . High Security . | . . . Max Security . | . . . Squads Dispatched 2 | . 2 . Investigation 1 | . 1 . Extermination . | . . . Reinforcement 1 | . 1 . Assault . | . . . Garrison . | . . . Intercept . | . . . Searches Triggered . | . . . Construction Impeded . | . . . Haulers Reinforced . | . . . Active Scanning Responses . | . . . Cargo Convoy Interrupts . | . . . Stealth | -11 -10 -10 --------- Run | Jun Mat Min Distress Signals 3 | . 2 1 Communications Jammed . | . . . Distress Signals . | . . . Times Spotted 34 | . 24 10 Peak Tracking Total 4 | . 4 2 Tactical Retreats 1 | . 1 . Traps | -11 -10 -10 ------- Run | Jun Mat Min Traps Triggered 2 | . 2 . Indirectly . | . . . Trap Hack Attempts . | . . . Triggered . | . . . Disarmed . | . . . Reprogrammed . | . . . Reused . | . . . Traps Extracted . | . . . Installed . | . . . Triggered 1 | . . 1 Machines | -11 -10 -10 ---------- Run | Jun Mat Min Machines Disabled 1 | . 1 . Max in Single Turn 1 | . 1 . Machines Repaired . | . . . Machines Sabotaged . | . . . Overloaded Fab Kills . | . . . Hacking | -11 -10 -10 --------- Run | Jun Mat Min Machines Accessed 6 | . 5 1 Terminals 5 | . 5 . Fabricators . | . . . Repair Stations . | . . . Recycling Units . | . . . Scanalyzers . | . . . Garrison Access . | . . . Total Hacks 13 | . 12 1 Successful 6 | . 5 1 Failed 7 | . 7 . Catastrophic 2 | . 2 . Database Lockouts . | . . . Manual 11 | . 11 . Terminals 12 | . 12 . Fabricators . | . . . Repair Stations . | . . . Recycling Units . | . . . Scanalyzers . | . . . Garrison Access . | . . . Terminal Hacks 6 | . 5 1 Record 2 | . 2 . Robot Analysis 1 | . 1 . Prototype ID Bank 1 | . 1 . Open Door 1 | . . 1 Hauler Manifests 1 | . 1 . Fabricator Hacks . | . . . Repair Station Hacks . | . . . Recycling Unit Hacks . | . . . Scanalyzer . | . . . Garrison Access Hacks . | . . . Unauthorized Hacks . | . . . Terminals . | . . . Fabricators . | . . . Repair Stations . | . . . Recycling Units . | . . . Scanalyzers . | . . . Garrison Access . | . . . Data Cores Recovered . | . . . Used . | . . . Hacking Detections 5 | . 5 . Full Trace Events . | . . . Feedback Events . | . . . Feedback Blocked . | . . . Robot Schematics Acquired . | . . . Robots Built . | . . . Authchips . | . . . Time . | . . . Total Robot Build Rating . | . . . Part Schematics Acquired . | . . . Parts Built . | . . . Authchips . | . . . Time . | . . . Total Part Build Rating . | . . . Parts Repaired . | . . . Time . | . . . Parts Recycled . | . . . Recycled Matter . | . . . Retrieved Matter . | . . . Retrieved Components . | . . . Parts Scanalyzed . | . . . Part Schematics Acquired . | . . . Parts Damaged . | . . . Bothacking | -11 -10 -10 ------------ Run | Jun Mat Min Used RIF Installer . | . . . Robots Hacked . | . . . Non-combat . | . . . Combat . | . . . Robot Hacks Applied . | . . . Relay Couplers Released . | . . . Fabnet Peak Effective % . | . . . Robots Rewired . | . . . Allies Hacked . | . . . Hacks Repelled . | . . . Allies | -11 -10 -10 -------- Run | Jun Mat Min Total Allies . | . . . Largest Group . | . . . Highest-Rated Group . | . . . Highest-Rated Ally . | . . . Total Orders . | . . . Ally Attacks . | . . . Total Damage . | . . . Kills . | . . . Allies Corrupted . | . . . Allies Melted . | . . . Intel | -11 -10 -10 ------- Run | Jun Mat Min Robot Analysis Total 1 | . 1 . Derelict Logs Recovered 2 | . . 2 Drone Launches . | . . . Drone Recoveries . | . . . Exploration | -11 -10 -10 ------------- Run | Jun Mat Min Turns Passed 2647 | 80 1693 874 Spaces Moved 1002 | 41 716 245 Core 88 | 13 . 75 Treads 838 | 28 716 94 Legs . | . . . Wheels 76 | . . 76 Hover . | . . . Flight . | . . . Fastest Speed 50 | 50 160 110 Average Speed 213 | 125 196 279 Slowest Speed 500 | 160 240 500 Overloaded Moves . | . . . Propulsion Burnouts . | . . . Robots Hopped . | . . . Cave-ins Triggered . | . . . Exploration Rate (%) 45 | 3 80 52 Regions Visited 2 Branch Regions 1 Pre-discovered Areas . | . . . Known Exits Taken 1 | . 1 . Unknown Exits Taken 1 | 1 . . Scrap Searched . | . . . Spaces Dug . | . . . Terrain Destroyed 100 | . 51 49 Melee . | . . . Projectile . | . . . AOE 100 | . 51 49 Terrain Rammed . | . . . Walls Destroyed . | . . . Machines Disabled . | . . . Actions | -11 -10 -10 --------- Run | Jun Mat Min Total 1305 | 61 884 360 Wait 134 | . 75 59 Move 1000 | 40 715 245 Hop . | . . . Pick Up 29 | 8 20 1 Fast Attach 1 | . . 1 Attach 13 | 7 4 2 Detach . | . . . Swap 6 | . 5 1 Drop 3 | 1 1 1 Fire 119 | 5 64 50 Melee . | . . . Ram . | . . . Kick . | . . . Crush . | . . . Escape Stasis . | . . . Rewire . | . . . Trap . | . . . Miscellaneous . | . . . Route ------- -11/Junkyard -10/Materials (discovered 4 exits: *Mat x3 / *Min) -10/Mines History --------- Turn | Location | Event 5 | -11/Junkyard | Discovered new exit (range 15) 81 | -11/Junkyard | Entered Materials 198 | -10/Materials | Discovered new exit (range 10) 285 | -10/Materials | Discovered new exit (range 15) 312 | -10/Materials | Build established: Mutant 663 | -10/Materials | Discovered new exit (range 4) 765 | -10/Materials | Core integrity fell below 50% 906 | -10/Materials | Discovered new exit (range 16) 939 | -10/Materials | Core integrity fell below 20% 1200 | -10/Materials | Identified exit to Materials 1772 | -10/Materials | Identified exit to Mines 1774 | -10/Materials | Entered Mines 1780 | -10/Mines | Found the Drone Emporium 1792 | -10/Mines | Found Prototype Device 1932 | -10/Mines | Received a Rocket Launcher from a helpful Derelict 1963 | -10/Mines | Learned 4 Materials zone layouts 2496 | -10/Mines | Assembled infested the area 2648 | -10/Mines | Destroyed by as-07697 with Assembled Heavy Rifle Last Messages --------------- squad. 02555_ T-07 Excavator destroyed. 02558_ K-01 Serf collects debris. 02565_ as-52284 destroyed. 02566_ K-01 Serf collects debris. 02567_ U-05 Engineer lays Concrete. 02567_ Acquired 17 matter. 02568_ U-05 Engineer lays Concrete. 02571_ K-01 Serf collects debris. 02572_ U-05 Engineer lays Concrete. 02575_ K-01 Serf destroyed. 02598_ Assault Rifle destroyed. 02598_ Ion Engine destroyed. 02599_ as-21897 destroyed. 02610_ as-24969 destroyed. 02622_ as-35456 destroyed. 02623_ The unstable cave ceiling collapses. 02635_ as-17601 destroyed. 02637_ as-20993 destroyed. 02638_ The unstable cave ceiling collapses. Map ----- +----------------------------------------------------+ | ?????????????????????????????????????? | | ?????????????????????????????????????? | | ?????????????????????????????????????? | | ?????????????????????????????????????? | | ?????????????????????????????????????? | | ?????????????????????????????????????? | | ?????????????????????????????????????? | | ?????????????????????????????????????? | | ?????????????????????????????????????? | | ?????????????????????????????????????? | | ?????????????????????????????????????? | | ?????????????????????????????????????? | | ??????????????????????#??????????????? | | ????????????????????? #??????????????? | | ?????????????????####a???????????????? | | ?????????????????# ????????????????? | | ?????????????????# ###??????????????? | | ?????????????????# % ####???????????? | | ?????????????????# a #???????????# | | ????????????????? ## ##?????????## | | ??????????????### # # #????###### | | ????????????## # #???# | | ????????????# #???# #### | | ????????????# #% #???# #?## | | ???????????## # #??# ### ! | | ???????????# @ #???# ## | | ???????????### #??# ## | | ?????????????## ##?# ## | | ?????????????## ### ### | | ??????????#### ### | | ?????????## ###### #?? | | ?????????# ##????# #?? | | ?????????# = ##?????# #?? | | ?????????#### # ##??????# #?? | | ????????????## ## ##???????# #?? | | ?????????????# ##?####????????# #?? | | ?????????????# #?????####????# #?? | | ????????????# #????# ###### ### | | ????????????# #????# | | ????######??## ##????# ##### | | ???##""""##??#### #?????# ##??## ## | | ???#" "#?????# #????## ##??# #? | | ???#" "#?????# #???## #??# #? | | ???## [ ######?# #???# ##?# #? | | ???### ## ### ##### ### | | ???# X ##### | | ???# ### ### ##? | | ???# ######?# ##?## #? | | ???# #?????## ###???## #? | | ???# #?????# #?????## ##? | +----------------------------------------------------+ Best States ------------- Heat Dissipation 25 Energy Generation 10 Energy Capacity 250 Matter Stores 300 Matter Capacity 300 Sight Range 16 Terrain Scan Density 10 Evasion (%) 50 Recoil Reduction 2 Authchip Count 4 Item Schematics ----------------- None Robot Schematics ------------------ None Fabricated ------------ Nothing Alien Tech Used ----------------- None Achievements -------------- None Challenges ------------ None Game ------ Seed SignalCompositeClaw Manual? 0 Play Time 00:33:45 Cumulative 10.2 hours Start 2023.11.21 @ 22:08:27 End 2023.11.23 @ 10:09:37 Sessions 5 Manual Loads 0 Difficulty Rogue Special Mode None Game No. 8 Rogue 7 Adventurer 1 Explorer 0 Win Type - Total 0 Types 0/0/0/0/0/0/0/0/0 Lore% 11 Gallery% 11 Achievement% 9 Wizard Run 0 Options --------- ASCII 0 Keyboard 0 Movement Mouse Keybinds 0 Fullscreen 2 Font 36/Terminus Map View 76x50 Tactical HUD 1 Map Filters NONE Filters NONE Steam 1 RUN: 82664130-48c3-4e62-a8ea-70815845bd7a